bitfinex/quotes_SOLUSD_20220102
["timestamp","ask_amount","ask_price","bid_price","bid_amount"]
[1641099111229,81.2195,175.49,175.38,8.8089]
[1641099111436,73.0395,175.49,175.38,8.8089]
[1641099112027,0.26,175.49,175.38,8.8089]
[1641099112428,86.0596,175.52,175.38,8.8089]
[1641099112642,8.18,175.53,175.38,8.8089]
[1641099112832,8.18,175.53,175.38,10.23559368]
[1641099113028,8.18,175.53,175.38,8.5489]
[1641099113633,16.7273,175.53,175.38,8.5489]
[1641099113828,16.9873,175.53,175.38,8.5489]
[1641099114032,1.2253,175.52,175.38,8.5489]
[1641099114434,1.4853,175.52,175.38,8.8089]
[1641099115134,1.4853,175.52,175.38,10.0225]
[1641099115534,1.4853,175.52,175.38,9.7625]
[1641099115735,31.5549743,175.49,175.38,8.5489]
[1641099115935,38.1909743,175.49,175.36,8.18]
[1641099116137,38.4509743,175.49,175.36,8.18]
[1641099116734,8.5501,175.47,175.36,8.18]
[1641099117334,8.5501,175.47,175.36,8.44]
[1641099117535,31.8149743,175.49,175.36,16.9903]
[1641099118742,40.3645743,175.49,175.36,16.9903]
[1641099119565,8.8096,175.49,175.36,16.9903]
[1641099121270,4.48447783,175.54,175.36,25.34199368]
[1641099121271,12.66447783,175.54,175.36,25.34199368]
[1641099121568,8.18,175.54,175.36,25.34199368]
[1641099121769,3.19487783,175.55,175.36,25.34199368]
[1641099122167,3.19487783,175.55,175.36,15.4753]
[1641099122168,37.37549504,175.54,175.36,15.4753]
[1641099122468,37.87549504,175.54,175.32,78.083]
[1641099122669,37.87549504,175.54,175.33,9.4176]
[1641099123068,49.01412805,175.54,175.33,9.4176]
[1641099123268,8.5497,175.48,175.36,8.5497]
[1641099123568,28.41349385,175.47,175.33,9.4176]
[1641099123968,28.67349385,175.47,175.33,9.4176]
[1641099124569,37.22369385,175.47,175.36,8.55]
[1641099125371,1.2283,175.48,175.36,8.55]
[1641099125570,28.4999,175.52,175.36,16.73]
[1641099125571,8.18,175.52,175.36,16.73]
[1641099125971,8.68,175.52,175.36,16.73]
[1641099126172,8.18,175.52,175.36,16.99]
[1641099126372,8.18,175.52,175.37,1.2687]
[1641099126573,8.18,175.52,175.42,8.5467]
[1641099126974,23.8376101,175.51,175.37,8.18]
[1641099127572,24.0976101,175.51,175.37,8.18]
[1641099127773,1.2869,175.5,175.37,8.18]
[1641099127973,1.5469,175.5,175.37,8.18]
[1641099128373,1.5469,175.5,175.37,8.44]
[1641099128575,1.5469,175.5,175.37,8.18]
[1641099129582,9.8356,175.5,175.37,16.7292]
[1641099129781,73.905,175.53,175.37,16.9892]
[1641099129983,73.905,175.53,175.38,72.04]
[1641099130410,73.905,175.53,175.38,72.3]
[1641099130581,73.905,175.53,175.39,1.2666]
[1641099130782,8.5482,175.51,175.39,9.8145]
[1641099130984,8.5482,175.51,175.39,10.0745]
[1641099131184,73.905,175.53,175.39,10.0745]
[1641099131782,10.83309368,175.54,175.39,10.0745]
[1641099132585,8.5476,175.53,175.39,10.0745]
[1641099133585,25.47194773,175.52,175.39,9.8145]
[1641099133785,8.5486,175.5,175.39,8.5479]
[1641099133984,8.8086,175.5,175.39,8.5479]
[1641099134486,1.2305,175.51,175.39,8.8079]
[1641099134986,0.26,175.51,175.39,8.8079]
[1641099135186,0.26,175.51,175.4,1.42669368]
[1641099135386,8.8072,175.53,175.41,8.547]
[1641099135790,0.26,175.53,175.41,9.97369368]
[1641099135988,8.44,175.54,175.41,9.97369368]
[1641099136388,8.18,175.54,175.41,10.23369368]
[1641099136587,2.6459,175.55,175.45,8.5452]
[1641099136789,2.6459,175.55,175.42,8.18]
[1641099137087,2.6459,175.55,175.42,9.7237]
[1641099137291,2.6459,175.55,175.43,1.42669368]
[1641099137488,2.6459,175.55,175.43,9.86669368]
[1641099137923,2.6459,175.55,175.44,1.42669368]
[1641099138091,2.6459,175.55,175.44,1.68669368]
[1641099138290,72.2967,175.56,175.47,8.5445]
[1641099139592,72.5567,175.56,175.47,8.5445]
[1641099139991,72.2967,175.56,175.47,8.5445]
[1641099141298,72.2967,175.56,175.46,8.545]
[1641099141497,72.0567,175.56,175.46,8.805]
[1641099142499,83.46637783,175.61,175.46,18.41169368]
[1641099142898,3.19487783,175.61,175.46,24.25169368]
[1641099143298,3.19487783,175.61,175.52,8.5418]
[1641099143502,4.52547783,175.64,175.52,8.5418]
[1641099143899,5.02547783,175.64,175.52,8.5418]
[1641099144099,4.52547783,175.64,175.52,8.5418]
[1641099144301,0.26,175.64,175.52,8.5418]
[1641099144501,82.2316,175.65,175.52,8.8018]
[1641099144700,82.2316,175.65,175.52,10.22849368]
[1641099144901,83.4473,175.65,175.52,11.45899368]
[1641099145102,74.906,175.65,175.52,11.45899368]
[1641099145510,74.906,175.65,175.52,19.63899368]
[1641099145700,73.6903,175.65,175.52,19.63899368]
[1641099145904,8.18,175.69,175.52,19.63899368]
[1641099146301,8.68,175.69,175.52,19.63899368]
[1641099146503,8.18,175.69,175.52,19.63899368]
[1641099146808,1.275,175.7,175.52,19.63899368]
[1641099147003,146.7137,175.71,175.52,19.63899368]
[1641099147205,99.97502643,175.71,175.52,19.63899368]
[1641099148406,8.5377,175.73,175.52,19.63899368]
[1641099148607,8.18,175.73,175.52,19.63899368]
[1641099148805,8.18,175.73,175.52,25.36343237]
[1641099149204,11.37487783,175.73,175.52,127.67343237]
[1641099149408,35.32799263,175.73,175.52,127.67343237]
[1641099149906,35.32799263,175.73,175.53,77.2939]
[1641099150110,35.32799263,175.73,175.62,8.5372]
[1641099150312,11.37487783,175.73,175.62,8.5372]
[1641099150514,11.37487783,175.73,175.62,8.7972]
[1641099151810,11.37487783,175.73,175.62,10.22389368]
[1641099152310,3.19487783,175.73,175.62,10.22389368]
[1641099152512,3.19487783,175.74,175.62,10.22389368]
[1641099152931,9.66755044,175.75,175.62,10.22389368]
[1641099153131,8.16755044,175.75,175.62,10.22389368]
[1641099153732,3.19487783,175.75,175.62,10.22389368]
[1641099154732,3.19487783,175.74,175.62,10.22389368]
[1641099155338,3.19487783,175.75,175.62,10.22389368]
[1641099155534,3.19487783,175.75,175.62,11.43209368]
[1641099155937,24.55276207,175.74,175.62,11.43209368]
[1641099157338,27.7476399,175.74,175.62,11.43209368]
[1641099157841,3.19487783,175.74,175.62,11.43209368]
[1641099159239,3.19487783,175.75,175.62,11.43209368]
[1641099159438,3.19487783,175.75,175.62,17.90609368]
[1641099159939,79.00397783,175.76,175.62,17.90609368]
[1641099160142,79.00397783,175.76,175.62,97.40359368]
[1641099160343,106.93938853,175.76,175.62,97.40359368]
[1641099160742,103.7445107,175.76,175.62,97.40359368]
[1641099161143,75.8091,175.76,175.62,97.40359368]
[1641099162642,1.3295,175.76,175.62,97.40359368]
[1641099163242,3.19487783,175.77,175.62,97.40359368]
[1641099163442,3.45487783,175.77,175.62,97.40359368]
[1641099163645,3.19487783,175.77,175.62,97.40359368]
[1641099164954,73.4528,175.78,175.63,8.18]
[1641099165151,73.4528,175.78,175.65,28.4455]
[1641099165551,73.4528,175.78,175.65,28.7055]
[1641099165751,73.4528,175.78,175.66,1.42669368]
[1641099166153,73.4528,175.78,175.66,1.68669368]
[1641099166554,73.4528,175.78,175.71,8.5331]
[1641099166754,1.31,175.8,175.71,8.5331]
[1641099170459,1.31,175.8,175.71,8.7931]
[1641099172081,78.4004,175.81,175.71,8.7931]
[1641099172282,77.175,175.81,175.71,18.39979368]
[1641099172682,75.9296,175.84,175.71,18.39979368]
[1641099173281,26.11366115,175.83,175.71,18.39979368]
[1641099173482,25.61366115,175.83,175.71,18.3034]
[1641099173685,25.61366115,175.83,175.71,9.8634]
[1641099173887,1.59816673,175.78,175.71,9.8634]
[1641099174484,1.59816673,175.77,175.71,9.8634]
[1641099175084,1.59816673,175.77,175.71,10.1234]
[1641099175588,1.09816673,175.77,175.71,10.1234]
[1641099175983,1.09816673,175.77,175.71,18.3034]
[1641099176983,4.44997783,175.82,175.71,18.3034]
[1641099177384,27.50351557,175.81,175.71,18.3034]
[1641099178190,3.19487783,175.8,175.71,18.3034]
[1641099179386,30.6983934,175.81,175.71,18.3034]
[1641099180388,31.1983934,175.81,175.71,18.3034]
[1641099180988,31.1983934,175.81,175.67,107.8909]
[1641099181188,8.18,175.8,175.67,79.4476]
[1641099181388,3.19487783,175.79,175.64,28.4471]
[1641099181689,3.19487783,175.79,175.63,79.4491]
[1641099181690,29.32897475,175.77,175.63,79.4491]
[1641099181887,32.52385258,175.77,175.63,79.4491]
[1641099182086,8.18,175.76,175.58,8.18]
[1641099182291,9.60669368,175.76,175.58,36.6379]
[1641099182490,1.42669368,175.75,175.58,36.6379]
[1641099182688,12.80157151,175.75,175.58,36.6379]
[1641099182888,80.7383,175.74,175.58,36.6379]
[1641099183091,28.1443816,175.73,175.61,8.5376]
[1641099183393,36.3243816,175.73,175.61,8.5376]
[1641099183592,39.77925943,175.73,175.61,8.5376]
[1641099184589,8.5383,175.71,175.61,8.5376]
[1641099185089,0.26,175.71,175.61,8.5376]
[1641099185489,28.4043816,175.73,175.61,8.5376]
[1641099185791,80.7383,175.74,175.61,13.8536]
[1641099185993,80.9983,175.74,175.61,14.1136]
[1641099186190,8.18,175.73,175.61,14.1136]
[1641099186591,8.44,175.73,175.61,14.1136]
[1641099187795,23.69884164,175.72,175.61,8.7976]
[1641099187996,23.95884164,175.72,175.61,8.7976]
[1641099188200,0.26,175.72,175.61,8.7976]
[1641099188702,0.26,175.72,175.61,8.5376]
[1641099188997,80.7383,175.74,175.61,8.5376]
[1641099188998,16.7172,175.73,175.61,8.5376]
[1641099189199,28.06260797,175.72,175.61,8.5376]
[1641099189603,28.32260797,175.72,175.61,8.5376]
[1641099190103,36.86050797,175.72,175.61,8.7976]
[1641099190503,28.32260797,175.72,175.61,8.7976]
[1641099190703,0.26,175.72,175.61,8.7976]
[1641099191106,0.26,175.73,175.61,8.7976]
[1641099191604,8.5372,175.73,175.61,8.7976]
[1641099191808,39.81952293,175.73,175.61,8.7976]
[1641099192007,40.07952293,175.73,175.61,8.7976]
[1641099192910,38.57952293,175.73,175.61,8.5376]
[1641099193106,46.75952293,175.73,175.57,8.18]
[1641099193307,1.42669368,175.72,175.54,8.18]
[1641099193609,8.541,175.66,175.52,8.18]
[1641099193808,8.18,175.69,175.52,8.18]
[1641099194009,80.8074,175.68,175.52,36.6467]
[1641099194207,80.8074,175.68,175.57,8.5399]
[1641099194408,80.8074,175.68,175.57,8.7999]
[1641099197011,80.8074,175.68,175.57,14.9689]
[1641099198632,80.8074,175.68,175.57,8.7999]
[1641099199433,30.32515714,175.67,175.57,8.5399]
[1641099199634,30.32515714,175.67,175.54,37.8454]
[1641099199635,38.86555714,175.67,175.55,8.5404]
[1641099199834,39.12555714,175.67,175.55,8.5404]
[1641099200033,39.12555714,175.67,175.54,8.18]
[1641099200234,39.62555714,175.67,175.54,8.18]
[1641099200639,41.05225082,175.67,175.54,8.18]
[1641099201037,44.24712865,175.67,175.54,8.18]
[1641099201439,42.82043497,175.67,175.54,8.18]
[1641099201638,3.19487783,175.66,175.54,8.18]
[1641099201836,3.69487783,175.66,175.54,8.18]
[1641099202037,11.99617783,175.66,175.54,8.5413]
[1641099202436,8.8013,175.66,175.54,8.5413]
[1641099202838,10.0648,175.66,175.54,8.5413]
[1641099203038,10.0648,175.66,175.53,8.5418]
[1641099203437,10.0648,175.66,175.53,8.8018]
[1641099203741,10.0648,175.66,175.49,28.4719]
[1641099203742,78.32927931,175.52,175.46,8.18]
[1641099203939,78.32927931,175.52,175.4,369.6195638]
[1641099203940,3.33692527,175.45,175.4,311.01050101]
[1641099204140,6.40467686,175.52,175.4,282.56053766]
[1641099204338,6.778,175.46,175.4,8.72]
[1641099204537,6.778,175.46,175.34,8.4452]
[1641099204538,8.18,175.45,175.28,89.88185305]
[1641099204738,8.72,175.4,175.24,28.5075]
[1641099204938,8.18,175.39,175.23,8.4991]
[1641099205137,8.18,175.39,175.24,8.5543]
[1641099205339,8.94,175.39,175.24,8.5543]
[1641099205539,8.94,175.39,175.19,84.9858]
[1641099205540,8.94,175.39,175.2,31.06190301]
[1641099205840,8.44,175.39,175.2,30.56190301]
[1641099206042,8.272,175.39,175.2,30.98859669]
[1641099206240,8.272,175.39,175.21,1.42669368]
[1641099206540,8.012,175.39,175.22,8.18]
[1641099206748,8.72,175.4,175.25,31.31965263]
[1641099206945,8.72,175.4,175.26,8.18]
[1641099207342,8.72,175.4,175.32,22.79221799]
[1641099207543,8.98,175.4,175.32,22.79221799]
[1641099207945,8.98,175.4,175.32,24.21891167]
[1641099208546,8.98,175.4,175.32,22.79221799]
[1641099209146,8.98,175.4,175.3,8.18]
[1641099209548,75.30065379,175.39,175.21,10.53834953]
[1641099209751,83.48065379,175.39,175.18,8.5573]
[1641099209947,1.2831,175.38,175.18,8.5573]
[1641099210147,8.18,175.37,175.19,33.40591775]
[1641099210349,8.18,175.37,175.2,8.18]
[1641099210547,8.44,175.37,175.2,8.18]
[1641099211350,8.44,175.37,175.2,7.68]
[1641099211749,2.5348,175.38,175.2,12.416]
[1641099211953,8.72,175.4,175.2,13.84269368]
[1641099212551,8.72,175.4,175.2,12.416]
[1641099212752,8.72,175.4,175.21,1.42669368]
[1641099212951,16.9,175.4,175.23,26.54048911]
[1641099213151,17.16,175.4,175.23,34.72048911]
[1641099213553,25.7149,175.4,175.23,43.27508911]
[1641099213753,26.2149,175.4,175.23,34.72048911]
[1641099215453,26.2149,175.4,175.23,32.72048911]
[1641099216055,25.7149,175.4,175.23,32.72048911]
[1641099216257,26.2149,175.4,175.23,32.72048911]
[1641099218057,25.9549,175.4,175.23,32.72048911]
[1641099218457,25.4549,175.4,175.23,32.72048911]
[1641099218859,25.9549,175.4,175.23,32.72048911]
[1641099219059,27.38159368,175.4,175.23,32.72048911]
[1641099219265,27.38159368,175.4,175.23,8.18]
[1641099219459,32.78559368,175.4,175.23,8.18]
[1641099219771,38.85597716,175.4,175.23,8.18]
[1641099220758,37.42928348,175.4,175.23,8.18]
[1641099221460,8.5581,175.33,175.23,8.18]
[1641099221858,8.8181,175.33,175.23,8.18]
[1641099222061,0.26,175.33,175.23,8.18]
[1641099222460,38.1904,175.38,175.23,8.18]
[1641099223461,8.5577,175.34,175.23,8.18]
[1641099223661,38.1904,175.38,175.16,8.18]
[1641099223662,8.18,175.33,175.16,8.18]
[1641099223860,10.10669368,175.33,175.16,8.18]
[1641099224060,10.36669368,175.33,175.16,8.18]
[1641099224261,8.94,175.33,175.16,8.18]
[1641099224461,8.94,175.33,175.17,23.88360174]
[1641099224964,8.5595,175.3,175.17,23.88360174]
[1641099225362,8.8195,175.3,175.17,23.88360174]
[1641099225564,8.8195,175.3,175.14,8.18]
[1641099225765,1.42669368,175.29,175.14,8.18]
[1641099225966,1.68669368,175.29,175.14,8.18]
[1641099226163,8.5609,175.27,175.14,8.18]
[1641099226366,0.26,175.29,175.14,8.18]
[1641099226566,0.26,175.29,175.15,24.39553591]
[1641099226964,72.7112,175.3,175.15,24.39553591]
[1641099227366,8.5606,175.28,175.15,24.39553591]
[1641099227569,8.8206,175.28,175.15,24.39553591]
[1641099230075,0.26,175.28,175.15,24.39553591]
[1641099230471,8.44,175.29,175.15,24.39553591]
[1641099231073,17.0002,175.29,175.15,24.39553591]
[1641099231572,8.18,175.29,175.15,24.39553591]
[1641099231797,1.2742,175.31,175.16,1.42669368]
[1641099232000,1.2742,175.31,175.17,8.18]
[1641099232397,1.2742,175.31,175.19,28.41596818]
[1641099232602,93.4194,175.34,175.19,28.41596818]
[1641099232801,93.4194,175.34,175.19,29.84266186]
[1641099233602,93.4194,175.34,175.19,38.39956186]
[1641099233801,85.2394,175.34,175.19,38.39956186]
[1641099234002,85.4994,175.34,175.19,38.39956186]
[1641099234408,85.4994,175.34,175.19,29.84266186]
[1641099234607,85.2394,175.34,175.19,29.84266186]
[1641099234804,85.2394,175.34,175.19,28.41596818]
[1641099235207,8.18,175.33,175.19,28.41596818]
[1641099235405,8.5598,175.29,175.19,28.41596818]
[1641099236005,8.8198,175.29,175.19,28.41596818]
[1641099236606,1.2079,175.32,175.19,28.41596818]
[1641099236808,0.26,175.29,175.19,28.41596818]
[1641099237008,1.4679,175.32,175.19,28.41596818]
[1641099237207,1.2079,175.32,175.19,28.41596818]
[1641099237408,1.4679,175.32,175.19,28.41596818]
[1641099238807,3.39459368,175.32,175.19,28.41596818]
[1641099239009,10.0263,175.32,175.19,28.41596818]
[1641099240411,9.7663,175.32,175.19,28.41596818]
[1641099240810,9.7663,175.32,175.19,26.48836818]
[1641099241810,10.0263,175.32,175.19,26.48836818]
[1641099242013,11.45299368,175.32,175.19,26.48836818]
[1641099242511,10.0263,175.32,175.19,26.48836818]
[1641099242714,1.2079,175.32,175.19,41.81936818]
[1641099242915,8.18,175.38,175.19,51.80336186]
[1641099243113,75.8199,175.37,175.2,75.7502]
[1641099243316,75.8199,175.37,175.2,83.9302]
[1641099243813,75.8199,175.37,175.2,85.1986]
[1641099244414,8.5566,175.35,175.2,85.1986]
[1641099244614,75.8199,175.37,175.2,85.1986]
[1641099245115,76.0799,175.37,175.21,0.92669368]
[1641099245314,75.8199,175.37,175.21,86.78709368]
[1641099245517,75.8199,175.37,175.23,8.5556]
[1641099245816,75.8199,175.37,175.24,27.12831927]
[1641099246617,75.8199,175.37,175.24,35.68331927]
[1641099247019,8.5552,175.38,175.24,35.68331927]
[1641099247220,8.72,175.4,175.25,8.18]
[1641099247415,8.72,175.4,175.25,16.43769368]
[1641099247616,8.72,175.4,175.25,15.271]
[1641099247817,8.72,175.4,175.25,16.69769368]
[1641099248119,8.72,175.4,175.3,33.67909197]
[1641099248317,8.72,175.4,175.28,8.18]
[1641099248516,8.72,175.4,175.28,8.44]
[1641099249017,8.72,175.4,175.28,8.18]
[1641099250017,8.72,175.4,175.28,9.86669368]
[1641099250625,8.72,175.4,175.28,9.60669368]
[1641099250817,8.72,175.4,175.28,9.86669368]
[1641099251217,8.72,175.4,175.28,16.9932]
[1641099252423,8.72,175.4,175.28,16.7332]
[1641099253026,8.98,175.4,175.28,8.18]
[1641099253623,17.5339,175.4,175.28,8.18]
[1641099254024,17.2739,175.4,175.28,8.18]
[1641099254232,8.72,175.4,175.28,18.16009368]
[1641099254425,8.72,175.4,175.28,18.42009368]
[1641099259753,8.72,175.4,175.29,56.31]
[1641099259954,8.72,175.4,175.35,8.5474]
[1641099260152,8.72,175.4,175.36,30.24951867]
[1641099260556,8.72,175.4,175.36,30.50951867]
[1641099261659,8.72,175.4,175.38,8.5474]
[1641099263059,8.72,175.4,175.36,8.5492]
[1641099263859,8.72,175.4,175.36,8.8092]
[1641099264059,8.72,175.4,175.36,37.68558353]
[1641099265261,8.72,175.4,175.36,9.97589368]
[1641099265467,8.72,175.4,175.34,16.7303]
[1641099265665,8.72,175.4,175.34,8.18]
[1641099266464,8.72,175.4,175.35,24.35442423]
[1641099267066,8.72,175.4,175.35,32.79442423]
[1641099267267,8.72,175.4,175.37,8.5491]
[1641099267467,8.72,175.4,175.37,8.8091]
[1641099268473,7.22,175.4,175.37,16.9891]
[1641099268671,11.74297783,175.52,175.39,25.512417]
[1641099268873,11.74297783,175.52,175.4,8.5474]
[1641099269073,12.00297783,175.52,175.4,8.5474]
[1641099269272,12.00297783,175.52,175.38,77.7115]
[1641099269674,9.67688019,175.51,175.38,77.7115]
[1641099270075,9.93688019,175.51,175.38,77.7115]
[1641099270679,9.67688019,175.5,175.37,8.18]
[1641099270980,0.26,175.5,175.37,8.18]
[1641099271178,0.26,175.5,175.37,16.7292]
[1641099271377,0.26,175.5,175.37,8.18]
[1641099271784,3.45487783,175.51,175.37,8.18]
[1641099271977,3.95487783,175.51,175.37,8.18]
[1641099272178,9.67777026,175.49,175.37,8.18]
[1641099272578,8.5506,175.46,175.37,8.18]
[1641099272979,8.8106,175.46,175.37,38.69234706]
[1641099273184,3.19487783,175.49,175.37,38.69234706]
[1641099273581,3.45487783,175.49,175.37,38.95234706]
[1641099274180,3.45487783,175.49,175.37,8.44]
[1641099274382,0.76,175.49,175.33,8.18]
[1641099274583,9.60669368,175.48,175.27,8.18]
[1641099274782,73.7278,175.47,175.27,8.18]
[1641099274981,8.18,175.46,175.27,8.18]
[1641099275181,11.37487783,175.46,175.28,23.65086665]
[1641099275383,12.13487783,175.46,175.28,23.65086665]
[1641099275681,8.5517,175.45,175.29,8.18]
[1641099275882,9.8544,175.45,175.29,8.18]
[1641099276085,9.8544,175.45,175.29,8.44]
[1641099276086,1.3027,175.45,175.29,8.44]
[1641099276281,1.3027,175.45,175.29,9.86669368]
[1641099276484,4.41167783,175.46,175.3,1.241]
[1641099276708,3.19487783,175.46,175.37,8.5491]
[1641099276882,16.7297,175.49,175.38,23.30812976]
[1641099277484,16.7297,175.49,175.32,36.6781]
[1641099277485,8.18,175.48,175.32,36.6781]
[1641099277684,8.5518,175.44,175.32,16.7312]
[1641099277885,9.60669368,175.48,175.28,74.3145]
[1641099277886,8.18,175.45,175.28,82.4945]
[1641099278085,0.26,175.44,175.28,82.4945]
[1641099278485,8.44,175.45,175.29,30.70922071]
[1641099278687,73.5249,175.44,175.29,30.70922071]
[1641099279088,8.5522,175.43,175.31,8.552]
[1641099279493,8.8122,175.43,175.31,8.552]
[1641099280497,8.8122,175.43,175.29,39.26182071]
[1641099281595,16.9922,175.43,175.29,30.70922071]
[1641099281997,17.4922,175.43,175.29,30.70922071]
[1641099282597,16.9922,175.43,175.29,30.70922071]
[1641099282796,17.4922,175.43,175.29,30.70922071]
[1641099282995,16.9922,175.43,175.29,30.70922071]
[1641099283896,17.4922,175.43,175.29,30.70922071]
[1641099284319,18.91889368,175.43,175.29,30.70922071]
[1641099284516,18.41889368,175.43,175.29,30.70922071]
[1641099284715,16.9922,175.43,175.29,30.70922071]
[1641099285917,18.41889368,175.43,175.29,30.70922071]
[1641099286819,18.15889368,175.43,175.29,30.70922071]
[1641099287017,73.5249,175.44,175.29,46.74912071]
[1641099287217,73.5249,175.44,175.3,9.60669368]
[1641099287717,73.5249,175.44,175.3,9.86669368]
[1641099287917,73.5249,175.44,175.31,1.42669368]
[1641099288117,73.5249,175.44,175.31,9.86669368]
[1641099288517,73.5249,175.44,175.33,29.66191223]
[1641099288719,73.5249,175.44,175.34,8.5505]
[1641099289716,1.42669368,175.51,175.35,8.18]
[1641099289918,78.9095,175.52,175.37,23.69966154]
[1641099290121,78.9095,175.52,175.37,109.30526154]
[1641099290317,78.9095,175.52,175.37,110.73195522]
[1641099291719,78.9095,175.52,175.41,28.015795]
[1641099291919,79.1695,175.52,175.41,28.015795]
[1641099292417,79.1695,175.52,175.37,87.03229368]
[1641099292619,79.1695,175.52,175.37,85.6056]
[1641099293219,79.1695,175.52,175.38,22.7626171]
[1641099293620,87.7174,175.52,175.38,31.5711171]
[1641099293819,87.7174,175.52,175.38,31.3111171]
[1641099294420,90.91227783,175.52,175.38,31.3111171]
[1641099294620,9.97549368,175.51,175.38,31.3111171]
[1641099294821,19.65217565,175.51,175.38,31.3111171]
[1641099295024,9.67668197,175.51,175.39,8.18]
[1641099295223,9.67668197,175.51,175.39,9.60669368]
[1641099295430,9.67668197,175.51,175.42,24.66546236]
[1641099295622,79.1695,175.52,175.42,24.66546236]
[1641099295825,78.9095,175.52,175.42,24.66546236]
[1641099296023,3.19487783,175.53,175.42,24.92546236]
[1641099296427,1.48356298,175.49,175.42,41.65216236]
[1641099297023,1.48356298,175.52,175.42,41.65216236]
[1641099297726,1.48356298,175.52,175.42,43.07885604]
[1641099300529,1.48356298,175.55,175.42,43.07885604]
[1641099300732,1.48356298,175.55,175.43,77.502]
[1641099300931,1.48356298,175.55,175.5,31.86733945]
[1641099301133,1.48356298,175.54,175.5,31.86733945]
[1641099301733,1.48356298,175.54,175.47,8.18]
[1641099302033,1.48356298,175.56,175.48,8.5435]
[1641099302231,1.48356298,175.54,175.48,8.5435]
[1641099302433,1.48356298,175.54,175.48,8.8035]
[1641099302631,1.48356298,175.54,175.49,27.88803576]
[1641099302833,1.48356298,175.54,175.49,36.06803576]
[1641099303032,1.48356298,175.56,175.52,8.5414]
[1641099303432,1.48356298,175.56,175.52,8.8014]
[1641099303632,1.48356298,175.58,175.52,8.8014]
[1641099303833,1.48356298,175.58,175.53,26.66569472]
[1641099304033,77.9004,175.62,175.53,26.66569472]
[1641099304433,78.4004,175.62,175.53,26.66569472]
[1641099304934,0.5,175.62,175.53,35.46689472]
[1641099305338,0.5,175.65,175.53,35.46689472]
[1641099305542,14.53347324,175.66,175.53,35.46689472]
[1641099305738,13.28517324,175.66,175.53,35.46689472]
[1641099305935,13.28517324,175.66,175.53,8.8012]
[1641099306735,21.82627324,175.66,175.53,8.8012]
[1641099307035,17.2211,175.66,175.53,35.18644452]
[1641099308339,17.4811,175.66,175.53,35.18644452]
[1641099309237,0.26,175.66,175.54,8.18]
[1641099309437,159.1019,175.67,175.54,16.9802]
[1641099310644,158.6019,175.67,175.54,16.9802]
[1641099310845,158.3419,175.67,175.54,16.9802]
[1641099311745,158.3419,175.67,175.54,18.40689368]
[1641099312245,158.6019,175.67,175.54,18.40689368]
[1641099312453,158.6019,175.67,175.54,16.9802]
[1641099313052,1.48356298,175.6,175.54,16.9802]
[1641099316958,1.48356298,175.63,175.54,16.9802]
[1641099317358,1.48356298,175.63,175.54,18.40689368]
[1641099318278,1.48356298,175.65,175.54,18.14689368]
[1641099318478,1.74356298,175.65,175.54,16.7202]
[1641099318978,1.48356298,175.62,175.54,16.7202]
[1641099319176,1.48356298,175.62,175.55,1.42669368]
[1641099319377,1.48356298,175.62,175.56,28.53792851]
[1641099319576,1.48356298,175.63,175.56,28.53792851]
[1641099319777,1.48356298,175.63,175.56,28.79792851]
[1641099320378,1.48356298,175.63,175.56,36.97792851]
[1641099320778,1.48356298,175.62,175.56,36.97792851]
[1641099320979,1.48356298,175.62,175.56,45.51742851]
[1641099321380,1.48356298,175.62,175.56,46.94412219]
[1641099321578,1.48356298,175.63,175.56,46.94412219]
[1641099322078,1.48356298,175.64,175.56,46.94412219]
[1641099322579,1.48356298,175.62,175.56,46.94412219]
[1641099323379,1.48356298,175.63,175.56,46.94412219]
[1641099323979,1.48356298,175.62,175.56,46.94412219]